[Event "4NCL Div 1 2024-25"]
[Site "England"]
[Date "2024.11.23"]
[Round "1.1"]
[White "Golding, Alex"]
[Black "Harvey, Marcus R"]
[Result "0-1"]
[ECO "B10"]
[WhiteElo "2404"]
[BlackElo "2491"]
[Annotator "RC"]
[PlyCount "50"]
[EventDate "2024.11.23"]
[EventType "team-tourn"]
[EventCountry "ENG"]
[SourceTitle "playchess.com"]
[Source "ChessBase"]
[SourceQuality "1"]
[TimeControl "40/6000+30:3000+30"]

1. e4 {[%emt 0:10:03]} c6 {[%emt 0:14:52]} 2. Nf3 {[%emt 0:02:13]} d5 {[%emt 0:00:05]} 3. d3 {[%emt 0:00:04]} dxe4 {[%emt 0:02:29]} 4. dxe4 {[%emt 0:00:07]} Qxd1+ {[%emt 0:00:17]} 5. Kxd1 {[%emt 0:00:07]} Nf6 {[%emt 0:00:05]} 6. Nbd2 {[%emt 0:03:04]} g6 {[%emt 0:00:16]} 7. Ne5 {[%emt 0:00:35]} Bg7 {[%emt 0:02:33]} 8. Nd3 {[%emt 0:04:19]} O-O {[%emt 0:00:05]} 9. f3 {[%emt 0:00:56]} Rd8 {[%emt 0:00:15]} 10. c3 {[%emt 0:02:28]} Ne8 {[%emt 0:00:28]} 11. Kc2 {[%emt 0:02:11]} f5 {[%emt 0:03:12]} 12. exf5 Bxf5 {[%emt 0:14:05]} 13. g4 {[%emt 0:07:01]} Bc8 {[%emt 0:00:12]} 14. Ne4 {[%emt 0:02:52]} Nd6 {[%emt 0:00:15]} 15. Ndf2 {[%emt 0:08:11]} Nd7 {[%emt 0:06:50]} 16. Bg5 {[%emt 0:05:40]} Nf6 {[%emt 0:04:41]} 17. Bxf6 {[%emt 0:02:14]} Bxf6 {[%emt 0:01:01]} 18. Re1 {[%emt 0:12:52]} Bh4 {[%emt 0:01:12]} 19. Ng3 {[%emt 0:09:47]} Rf8 {[%emt 0:03:55]} 20. Bg2 {[%emt 0:02:22]} b6 {[%emt 0:03:00]} 21. Nd3 {[%emt 0:01:30]} c5 {[%emt 0:01:28]} 22. Re2 {[%emt 0:11:28]} Ba6 {[%emt 0:01:48]} 23. Rd1 {[%emt 0:02:01]} Rad8 {[%emt 0:00:33]} 24. Ne4 {[%emt 0:03:02]} Nc4 {[%emt 0:01:52]} 25. Nef2 {[%emt 0:03:50]} Bxf2 {[%emt 0:00:35]} 0-1

[Event "4NCL Div 1 2024-25"]
[Site "England"]
[Date "2024.11.23"]
[Round "1.2"]
[White "Speelman, Jon S"]
[Black "Willow, Jonah B"]
[Result "1/2-1/2"]
[ECO "A05"]
[WhiteElo "2499"]
[BlackElo "2454"]
[Annotator "RC"]
[PlyCount "61"]
[EventDate "2024.11.23"]
[EventType "team-tourn"]
[EventCountry "ENG"]
[SourceTitle "playchess.com"]
[Source "ChessBase"]
[SourceQuality "1"]
[TimeControl "40/6000+30:3000+30"]

1. Nf3 {[%emt 1:41:00]} Nf6 {[%emt 0:10:22]} 2. g3 {[%emt 0:00:00]} c5 {[%emt 0:00:46]} 3. Bg2 {[%emt 0:00:00]} Nc6 {[%emt 0:00:48]} 4. O-O {[%emt 0:00:00]} e5 {[%emt 0:00:15]} 5. e4 {[%emt 0:00:00]} d6 {[%emt 0:00:38]} 6. Re1 {[%emt 0:00:00]} g6 {[%emt 0:06:56]} 7. c3 {[%emt 0:00:00]} Bg7 {[%emt 0:01:53]} 8. d3 {[%emt 0:00:00]} O-O {[%emt 0:03:54]} 9. Nbd2 {[%emt 0:00:00]} Re8 {[%emt 0:05:29]} 10. a3 {[%emt 0:00:00]} d5 {[%emt 0:06:42]} 11. b4 {[%emt 0:00:00]} cxb4 12. axb4 {[%emt 0:00:00]} d4 {[%emt 0:05:21]} 13. cxd4 Nxd4 {[%emt 0:02:09]} 14. Bb2 {[%emt 0:00:00]} Nxf3+ 15. Nxf3 {[%emt 0:00:00]} Bg4 {[%emt 0:08:13]} 16. Ra5 {[%emt 0:00:00]} Qd6 {[%emt 0:08:18]} 17. Qb3 {[%emt 0:00:00]} Bxf3 {[%emt 0:06:15]} 18. Bxf3 {[%emt 0:00:00]} b6 {[%emt 0:07:04]} 19. Ra6 {[%emt 0:00:00]} Bf8 {[%emt 0:03:32]} 20. Rea1 {[%emt 0:00:00]} Qxb4 {[%emt 0:01:07]} 21. Qxb4 {[%emt 0:00:00]} Bxb4 {[%emt 0:00:02]} 22. Rxa7 {[%emt 0:00:00]} Rad8 {[%emt 0:00:47]} 23. Be2 {[%emt 0:00:00]} Rc8 {[%emt 0:03:29]} 24. Bd1 {[%emt 0:00:00]} Bc3 {[%emt 0:00:38]} 25. Bxc3 {[%emt 0:00:00]} Rxc3 {[%emt 0:00:02]} 26. Ba4 {[%emt 0:00:00]} Rd8 {[%emt 0:18:03]} 27. Bb5 {[%emt 0:00:00]} Ne8 {[%emt 0:00:43]} 28. Bxe8 {[%emt 0:00:00]} Rxe8 {[%emt 0:00:06]} 29. Rd7 {[%emt 0:00:00]} Re6 {[%emt 0:00:20]} 30. Ra2 {[%emt 0:00:00]} b5 {[%emt 0:02:35]} 31. Rb7 {[%emt 0:00:00]} 1/2-1/2

[Event "4NCL Div 1 2024-25"]
[Site "England"]
[Date "2024.11.23"]
[Round "1.3"]
[White "Balaji, Aaravamudhan"]
[Black "Murphy, Conor E"]
[Result "0-1"]
[ECO "E20"]
[WhiteElo "2377"]
[BlackElo "2444"]
[Annotator "RC"]
[PlyCount "112"]
[EventDate "2024.11.23"]
[EventType "team-tourn"]
[EventCountry "ENG"]
[SourceTitle "playchess.com"]
[Source "ChessBase"]
[SourceQuality "1"]
[TimeControl "40/6000+30:3000+30"]

1. d4 {[%emt 0:10:08]} Nf6 {[%emt 0:10:07]} 2. c4 {[%emt 0:00:09]} e6 {[%emt 0:00:07]} 3. Nc3 {[%emt 0:00:05]} Bb4 {[%emt 0:00:17]} 4. f3 {[%emt 0:00:07]} d5 {[%emt 0:00:14]} 5. a3 {[%emt 0:00:19]} Bxc3+ {[%emt 0:00:07]} 6. bxc3 {[%emt 0:00:09]} c6 {[%emt 0:00:14]} 7. e4 {[%emt 0:01:18]} dxe4 {[%emt 0:00:18]} 8. fxe4 {[%emt 0:00:07]} e5 {[%emt 0:00:06]} 9. Nf3 {[%emt 0:06:24]} Bg4 {[%emt 0:02:29]} 10. Qd3 {[%emt 0:07:14]} Nbd7 {[%emt 0:03:05]} 11. dxe5 {[%emt 0:06:24]} Ng8 {[%emt 0:04:54]} 12. Rb1 {[%emt 0:09:12]} Ne7 13. Bg5 {[%emt 0:21:43]} h6 {[%emt 0:26:21]} 14. Bh4 {[%emt 0:06:46]} g5 {[%emt 0:07:36]} 15. Bf2 {[%emt 0:03:46]} Ng6 {[%emt 0:02:21]} 16. Rxb7 {[%emt 0:05:56]} Rb8 {[%emt 0:10:23]} 17. Qb1 {[%emt 0:17:33]} Rxb7 {[%emt 0:08:59]} 18. Qxb7 {[%emt 0:00:03]} O-O {[%emt 0:00:25]} 19. Bd4 {[%emt 0:04:42]} c5 {[%emt 0:03:49]} 20. Be3 {[%emt 0:03:07]} Qa5 {[%emt 0:08:50]} 21. Kf2 {[%emt 0:01:20]} Rb8 {[%emt 0:04:46]} 22. Qd5 {[%emt 0:00:15]} Be6 {[%emt 0:01:20]} 23. Qd6 {[%emt 0:02:44]} Rb6 {[%emt 0:03:51]} 24. Qd2 {[%emt 0:00:59]} Qxa3 {[%emt 0:00:24]} 25. Kg3 {[%emt 0:01:04]} Rb3 {[%emt 0:04:15]} 26. h4 {[%emt 0:01:11]} Rxc3 {[%emt 0:03:36]} 27. Kf2 {[%emt 0:00:12]} Qb3 {[%emt 0:01:51]} 28. Ne1 {[%emt 0:00:41]} Ndxe5 {[%emt 0:00:46]} 29. Be2 {[%emt 0:00:25]} gxh4 {[%emt 0:01:14]} 30. Bxc5 {[%emt 0:00:35]} Rxc4 {[%emt 0:01:45]} 31. Bxc4 {[%emt 0:00:45]} Qg3+ {[%emt 0:00:35]} 32. Kg1 {[%emt 0:00:02]} Bxc4 {[%emt 0:00:30]} 33. Rh3 {[%emt 0:01:01]} Qg4 {[%emt 0:00:04]} 34. Qxh6 {[%emt 0:00:19]} Qxe4 {[%emt 0:00:29]} 35. Qe3 {[%emt 0:00:26]} Qf5 {[%emt 0:00:24]} 36. Qf2 {[%emt 0:00:31]} Qh5 {[%emt 0:01:14]} 37. Bd4 {[%emt 0:00:33]} Ng4 {[%emt 0:00:28]} 38. Qb2 {[%emt 0:00:34]} Qf5 {[%emt 0:00:30]} 39. Nf3 {[%emt 0:00:25]} Bb5 {[%emt 0:00:25]} 40. Rh1 {[%emt 0:00:44]} Qd3 {[%emt 0:00:44]} 41. Qc1 {[%emt 0:28:27]} Bc6 {[%emt 0:27:33]} 42. Rxh4 {[%emt 0:09:35]} Nxh4 {[%emt 0:04:17]} 43. Qg5+ {[%emt 0:00:24]} Ng6 {[%emt 0:00:42]} 44. Qxg4 {[%emt 0:00:42]} Qd1+ {[%emt 0:02:07]} 45. Kh2 {[%emt 0:03:22]} Bxf3 {[%emt 0:01:00]} 46. gxf3 {[%emt 0:02:16]} Qd2+ {[%emt 0:00:31]} 47. Kg1 {[%emt 0:01:00]} a5 {[%emt 0:03:39]} 48. Qc8+ {[%emt 0:02:10]} Kh7 {[%emt 0:00:51]} 49. Qh3+ {[%emt 0:00:31]} Qh6 {[%emt 0:00:26]} 50. Qd7 {[%emt 0:00:50]} Qf4 {[%emt 0:03:20]} 51. Qh3+ {[%emt 0:05:16]} Qh4 {[%emt 0:00:28]} 52. Qxh4+ {[%emt 0:01:20]} Nxh4 {[%emt 0:00:02]} 53. Kf2 {[%emt 0:00:06]} Kg6 {[%emt 0:02:44]} 54. Bc5 {[%emt 0:00:56]} Kf5 {[%emt 0:00:27]} 55. Ke3 {[%emt 0:00:30]} Ke5 {[%emt 0:00:33]} 56. Be7 {[%emt 0:00:25]} Nf5+ {[%emt 0:09:57]} 0-1

[Event "4NCL Div 1 2024-25"]
[Site "England"]
[Date "2024.11.23"]
[Round "1.6"]
[White "Zhou, Yang-Fan"]
[Black "Derakhshani, Borna"]
[Result "1/2-1/2"]
[ECO "A06"]
[WhiteElo "2418"]
[BlackElo "2355"]
[Annotator "RC"]
[PlyCount "48"]
[EventDate "2024.11.23"]
[EventType "team-tourn"]
[EventCountry "ENG"]
[SourceTitle "playchess.com"]
[Source "ChessBase"]
[SourceQuality "1"]
[TimeControl "40/6000+30:3000+30"]

1. b3 {[%emt 0:11:31]} d5 {[%emt 0:11:53]} 2. Bb2 {[%emt 0:00:27]} Nf6 {[%emt 0:00:16]} 3. Nf3 {[%emt 0:01:11]} c6 {[%emt 0:00:47]} 4. d3 {[%emt 0:03:10]} a5 {[%emt 0:03:07]} 5. a3 {[%emt 0:05:39]} Bf5 {[%emt 0:13:38]} 6. Nh4 {[%emt 0:09:52]} Bd7 {[%emt 0:08:18]} 7. g3 {[%emt 0:04:18]} Qc8 {[%emt 0:05:25]} 8. Bg2 {[%emt 0:05:54]} Bh3 {[%emt 0:03:05]} 9. O-O {[%emt 0:01:04]} Bxg2 {[%emt 0:00:06]} 10. Kxg2 {[%emt 0:00:15]} e6 {[%emt 0:13:13]} 11. Nd2 {[%emt 0:03:06]} Be7 {[%emt 0:07:51]} 12. e4 {[%emt 0:03:32]} c5 {[%emt 0:02:22]} 13. exd5 {[%emt 0:01:35]} Nxd5 {[%emt 0:04:00]} 14. Qg4 {[%emt 0:03:31]} Qc6 {[%emt 0:04:08]} 15. Nhf3 {[%emt 0:05:25]} Rg8 {[%emt 0:03:21]} 16. Kg1 {[%emt 0:11:09]} Nd7 {[%emt 0:00:07]} 17. Qe4 {[%emt 0:01:08]} Bf6 {[%emt 0:03:52]} 18. Qxh7 {[%emt 0:09:24]} O-O-O {[%emt 0:00:28]} 19. Bxf6 {[%emt 0:00:08]} gxf6 {[%emt 0:00:30]} 20. Qh4 {[%emt 0:11:31]} f5 {[%emt 0:00:41]} 21. Ng5 {[%emt 0:04:12]} f6 {[%emt 0:02:47]} 22. Ngf3 {[%emt 0:03:16]} Rg4 {[%emt 0:07:17]} 23. Qh6 {[%emt 0:00:04]} Rdg8 {[%emt 0:01:15]} 24. Rfe1 {[%emt 0:02:19]} Nf4 {[%emt 0:01:31]} 1/2-1/2

[Event "4NCL Div 1 2024-25"]
[Site "England"]
[Date "2024.11.23"]
[Round "1.9"]
[White "Erdos, Viktor"]
[Black "Larkin, Vladyslav"]
[Result "1-0"]
[ECO "E49"]
[WhiteElo "2533"]
[BlackElo "2455"]
[Annotator "RC"]
[PlyCount "109"]
[EventDate "2024.11.23"]
[EventType "team-tourn"]
[EventCountry "ENG"]
[SourceTitle "playchess.com"]
[Source "ChessBase"]
[SourceQuality "1"]
[TimeControl "40/6000+30:3000+30"]

1. d4 {[%emt 0:10:09]} Nf6 {[%emt 0:10:13]} 2. c4 {[%emt 0:00:04]} e6 {[%emt 0:00:04]} 3. Nc3 {[%emt 0:00:05]} Bb4 {[%emt 0:00:13]} 4. e3 {[%emt 0:00:06]} O-O {[%emt 0:00:29]} 5. Bd3 {[%emt 0:00:08]} d5 {[%emt 0:00:25]} 6. a3 {[%emt 0:00:07]} Bxc3+ {[%emt 0:00:21]} 7. bxc3 {[%emt 0:00:05]} c5 {[%emt 0:00:02]} 8. cxd5 {[%emt 0:01:54]} exd5 {[%emt 0:00:10]} 9. Ne2 {[%emt 0:00:12]} Qc7 {[%emt 0:15:56]} 10. O-O {[%emt 0:01:18]} b6 {[%emt 0:00:29]} 11. f3 {[%emt 0:01:39]} Re8 {[%emt 0:03:05]} 12. Ra2 {[%emt 0:17:26]} Ba6 {[%emt 0:01:43]} 13. Ng3 {[%emt 0:00:21]} cxd4 {[%emt 0:14:50]} 14. cxd4 {[%emt 0:01:35]} Qc3 {[%emt 0:00:05]} 15. Bxa6 {[%emt 0:08:00]} Nxa6 {[%emt 0:00:05]} 16. Rc2 {[%emt 0:00:18]} Qb3 {[%emt 0:01:49]} 17. e4 {[%emt 0:04:38]} Nd7 {[%emt 0:02:11]} 18. Nf5 {[%emt 0:30:23]} f6 {[%emt 0:10:27]} 19. Ne7+ {[%emt 0:04:53]} Kh8 {[%emt 0:00:26]} 20. Nxd5 {[%emt 0:00:08]} f5 {[%emt 0:00:44]} 21. Bb2 {[%emt 0:15:21]} Rad8 {[%emt 0:02:14]} 22. Re2 {[%emt 0:00:31]} Qb5 {[%emt 0:00:30]} 23. Rfe1 {[%emt 0:00:47]} Nf8 {[%emt 0:04:51]} 24. a4 {[%emt 0:05:37]} Qd7 {[%emt 0:01:05]} 25. Qd3 {[%emt 0:02:13]} Nb8 {[%emt 0:00:51]} 26. Qb5 {[%emt 0:04:43]} Qf7 {[%emt 0:00:05]} 27. h3 {[%emt 0:00:38]} Ng6 {[%emt 0:01:20]} 28. exf5 {[%emt 0:00:27]} Rxe2 {[%emt 0:00:11]} 29. Rxe2 {[%emt 0:00:07]} Nh4 {[%emt 0:01:52]} 30. Ne7 {[%emt 0:00:36]} Nd7 {[%emt 0:01:14]} 31. Nc6 {[%emt 0:00:40]} Rf8 {[%emt 0:04:52]} 32. Ne5 {[%emt 0:00:48]} Nxe5 {[%emt 0:00:15]} 33. dxe5 {[%emt 0:00:04]} Qxf5 {[%emt 0:01:12]} 34. e6 {[%emt 0:00:13]} Qxb5 {[%emt 0:07:59]} 35. axb5 {[%emt 0:00:02]} Kg8 {[%emt 0:00:06]} 36. Rd2 {[%emt 0:01:28]} Re8 {[%emt 0:00:43]} 37. Rd7 {[%emt 0:00:36]} Rxe6 {[%emt 0:00:05]} 38. Rxg7+ {[%emt 0:00:16]} Kf8 {[%emt 0:00:02]} 39. Kf2 {[%emt 0:00:30]} Ng6 {[%emt 0:12:25]} 40. Rxh7 {[%emt 0:00:14]} Nf4 {[%emt 0:00:04]} 41. Ba3+ {[%emt 0:50:14]} Kg8 {[%emt 0:50:17]} 42. Rxa7 {[%emt 0:00:00]} Re2+ {[%emt 0:00:00]} 43. Kg3 {[%emt 0:00:00]} Nxg2 {[%emt 0:00:00]} 44. f4 {[%emt 0:00:00]} Ra2 {[%emt 0:00:00]} 45. f5 {[%emt 0:00:00]} Ne3 {[%emt 0:00:00]} 46. f6 {[%emt 0:00:00]} Nf5+ {[%emt 0:00:00]} 47. Kf4 {[%emt 0:00:00]} Nh6 {[%emt 0:00:00]} 48. Rg7+ {[%emt 0:01:07]} Kh8 {[%emt 0:00:00]} 49. Be7 {[%emt 0:02:35]} Rf2+ {[%emt 0:00:00]} 50. Ke4 {[%emt 0:00:36]} Ng8 {[%emt 0:00:00]} 51. Kd5 {[%emt 0:01:06]} Rf5+ {[%emt 0:00:00]} 52. Ke6 {[%emt 0:00:44]} Rf3 {[%emt 0:00:00]} 53. Rg5 {[%emt 0:00:14]} Nh6 {[%emt 0:00:00]} 54. Rh5 {[%emt 0:00:11]} Re3+ {[%emt 0:00:00]} 55. Kd7 {[%emt 0:00:13]} 1-0

[Event "4NCL Div 1 2024-25"]
[Site "England"]
[Date "2024.11.23"]
[Round "1.10"]
[White "Jogstad, Martin"]
[Black "Royal, Shreyas"]
[Result "0-1"]
[ECO "A09"]
[WhiteElo "2379"]
[BlackElo "2520"]
[Annotator "RC"]
[PlyCount "80"]
[EventDate "2024.11.23"]
[EventType "team-tourn"]
[EventCountry "ENG"]
[SourceTitle "playchess.com"]
[Source "ChessBase"]
[SourceQuality "1"]
[TimeControl "40/6000+30:3000+30"]

1. c4 {[%emt 0:10:07]} Nf6 {[%emt 0:10:34]} 2. g3 {[%emt 0:00:14]} e6 {[%emt 0:00:44]} 3. Bg2 {[%emt 0:00:18]} d5 {[%emt 0:00:06]} 4. Nf3 {[%emt 0:00:07]} d4 {[%emt 0:00:39]} 5. d3 {[%emt 0:00:28]} c5 {[%emt 0:02:28]} 6. O-O {[%emt 0:00:10]} Nc6 {[%emt 0:00:05]} 7. e3 {[%emt 0:00:20]} h6 {[%emt 0:01:22]} 8. Re1 {[%emt 0:00:59]} Bd6 {[%emt 0:01:55]} 9. Na3 {[%emt 0:03:40]} O-O {[%emt 0:00:53]} 10. Nb5 {[%emt 0:09:14]} Bb8 {[%emt 0:05:34]} 11. exd4 {[%emt 0:02:51]} cxd4 {[%emt 0:00:36]} 12. c5 {[%emt 0:03:24]} e5 {[%emt 0:07:21]} 13. Nd2 {[%emt 0:13:00]} a6 {[%emt 0:01:39]} 14. Na3 {[%emt 0:12:16]} Bc7 {[%emt 0:03:38]} 15. Nac4 {[%emt 0:02:55]} Re8 {[%emt 0:00:11]} 16. a3 {[%emt 0:06:33]} Be6 {[%emt 0:06:17]} 17. Qc2 {[%emt 0:01:04]} Bd5 {[%emt 0:00:29]} 18. Ne4 {[%emt 0:01:54]} Nxe4 {[%emt 0:01:58]} 19. Bxe4 {[%emt 0:00:10]} Bxe4 {[%emt 0:10:53]} 20. Rxe4 {[%emt 0:00:43]} Qd5 {[%emt 0:04:40]} 21. Nd2 {[%emt 0:05:50]} f5 {[%emt 0:01:27]} 22. Re1 {[%emt 0:00:56]} e4 {[%emt 0:11:20]} 23. dxe4 {[%emt 0:05:22]} d3 {[%emt 0:01:13]} 24. Qc4 {[%emt 0:03:30]} Qxc4 {[%emt 0:00:10]} 25. Nxc4 {[%emt 0:00:07]} Nd4 {[%emt 0:01:10]} 26. Rd1 {[%emt 0:00:55]} Rxe4 {[%emt 0:01:41]} 27. Ne3 {[%emt 0:07:31]} Nb3 {[%emt 0:00:58]} 28. Rb1 {[%emt 0:00:19]} Rd8 {[%emt 0:00:17]} 29. Bd2 {[%emt 0:00:44]} f4 {[%emt 0:00:54]} 30. gxf4 {[%emt 0:00:48]} Bxf4 {[%emt 0:01:14]} 31. Nf1 {[%emt 0:01:30]} Nxc5 {[%emt 0:06:20]} 32. Rbc1 {[%emt 0:02:22]} Ne6 {[%emt 0:03:12]} 33. f3 {[%emt 0:09:33]} Re2 {[%emt 0:00:37]} 34. Kh1 {[%emt 0:05:18]} Bxd2 {[%emt 0:02:16]} 35. Rxd2 {[%emt 0:00:41]} Nf4 {[%emt 0:00:35]} 36. Rc4 {[%emt 0:01:50]} g5 {[%emt 0:00:04]} 37. Re4 {[%emt 0:00:19]} Rc8 {[%emt 0:00:27]} 38. h4 {[%emt 0:00:56]} Rc1 {[%emt 0:00:23]} 39. Kg1 {[%emt 0:00:19]} Nh3+ {[%emt 0:00:06]} 40. Kh1 {[%emt 0:00:04]} Rxf1# {[%emt 0:00:38]} 0-1

[Event "4NCL Div 1 2024-25"]
[Site "England"]
[Date "2024.11.23"]
[Round "1.11"]
[White "Csonka, Balazs"]
[Black "Maycock Bates, David Henry"]
[Result "1-0"]
[ECO "E04"]
[WhiteElo "2473"]
[BlackElo "2290"]
[Annotator "RC"]
[PlyCount "71"]
[EventDate "2024.11.23"]
[EventType "team-tourn"]
[EventCountry "ENG"]
[SourceTitle "playchess.com"]
[Source "ChessBase"]
[SourceQuality "1"]
[TimeControl "40/6000+30:3000+30"]

1. d4 {[%emt 0:10:03]} Nf6 {[%emt 0:11:03]} 2. c4 {[%emt 0:00:11]} e6 {[%emt 0:00:05]} 3. Nf3 {[%emt 0:00:17]} d5 {[%emt 0:00:11]} 4. g3 {[%emt 0:00:17]} dxc4 {[%emt 0:00:15]} 5. Bg2 {[%emt 0:00:08]} a6 {[%emt 0:00:31]} 6. Ne5 {[%emt 0:00:26]} Bb4+ {[%emt 0:09:36]} 7. Nc3 {[%emt 0:00:13]} Nd5 {[%emt 0:15:56]} 8. O-O {[%emt 0:01:34]} Nxc3 {[%emt 0:00:11]} 9. bxc3 {[%emt 0:00:07]} Bxc3 {[%emt 0:00:05]} 10. Rb1 {[%emt 0:00:06]} Qxd4 {[%emt 0:02:26]} 11. Qa4+ {[%emt 0:00:18]} b5 {[%emt 0:00:06]} 12. Qa3 {[%emt 0:00:16]} Qxe5 {[%emt 0:27:42]} 13. Bf4 {[%emt 0:00:11]} Qf6 {[%emt 0:01:02]} 14. Bxc7 {[%emt 0:00:10]} b4 {[%emt 0:00:56]} 15. Qa5 {[%emt 0:00:55]} O-O {[%emt 0:09:44]} 16. Bxa8 {[%emt 0:00:16]} e5 {[%emt 0:00:59]} 17. Qc5 {[%emt 0:01:36]} Bf5 {[%emt 0:13:34]} 18. Qxc4 {[%emt 0:00:43]} Bxb1 {[%emt 0:06:45]} 19. Rxb1 {[%emt 0:00:03]} a5 {[%emt 0:00:55]} 20. Bxa5 {[%emt 0:28:07]} Qa6 {[%emt 0:01:49]} 21. Qxa6 {[%emt 0:02:17]} Nxa6 {[%emt 0:00:02]} 22. Bb7 {[%emt 0:00:39]} Nc5 {[%emt 0:01:22]} 23. Bd5 {[%emt 0:00:16]} g6 {[%emt 0:05:32]} 24. a3 {[%emt 0:16:00]} Rb8 {[%emt 0:00:01]} 25. axb4 {[%emt 0:01:13]} Na6 {[%emt 0:00:22]} 26. Bc4 {[%emt 0:01:01]} Nxb4 {[%emt 0:00:09]} 27. Rb3 {[%emt 0:00:19]} Bd2 {[%emt 0:01:24]} 28. Kf1 {[%emt 0:01:49]} h5 {[%emt 0:01:14]} 29. e3 {[%emt 0:00:59]} h4 {[%emt 0:00:02]} 30. gxh4 {[%emt 0:02:50]} Kg7 {[%emt 0:00:19]} 31. Ke2 {[%emt 0:00:07]} Rh8 {[%emt 0:01:10]} 32. Kxd2 {[%emt 0:00:22]} Nc6 {[%emt 0:00:05]} 33. Bc3 {[%emt 0:00:11]} Rxh4 {[%emt 0:00:05]} 34. Bd5 {[%emt 0:00:15]} Ne7 {[%emt 0:00:17]} 35. Bxe5+ {[%emt 0:00:47]} f6 {[%emt 0:00:20]} 36. Bg3 {[%emt 0:00:16]} 1-0

[Event "4NCL Div 1 2024-25"]
[Site "England"]
[Date "2024.11.23"]
[Round "1.13"]
[White "Grieve, Harry"]
[Black "Jarocka, Liwia"]
[Result "1-0"]
[ECO "B15"]
[WhiteElo "2464"]
[BlackElo "2267"]
[Annotator "RC"]
[PlyCount "77"]
[EventDate "2024.11.23"]
[EventType "team-tourn"]
[EventCountry "ENG"]
[SourceTitle "playchess.com"]
[Source "ChessBase"]
[SourceQuality "1"]
[TimeControl "40/6000+30:3000+30"]

1. e4 {[%emt 0:10:02]} c6 {[%emt 0:10:14]} 2. d4 {[%emt 0:00:04]} d5 {[%emt 0:00:04]} 3. Nd2 {[%emt 0:00:04]} dxe4 {[%emt 0:00:06]} 4. Nxe4 {[%emt 0:00:03]} Nf6 {[%emt 0:00:07]} 5. Nxf6+ {[%emt 0:00:04]} exf6 {[%emt 0:00:05]} 6. c3 {[%emt 0:00:03]} Bd6 {[%emt 0:00:10]} 7. Bd3 {[%emt 0:00:06]} O-O {[%emt 0:00:16]} 8. Qc2 {[%emt 0:00:04]} Re8+ {[%emt 0:00:05]} 9. Ne2 {[%emt 0:00:04]} h5 {[%emt 0:00:23]} 10. O-O {[%emt 0:00:11]} h4 {[%emt 0:00:39]} 11. h3 {[%emt 0:00:05]} Bc7 {[%emt 0:02:36]} 12. Bd2 {[%emt 0:04:30]} Nd7 {[%emt 0:00:53]} 13. Rae1 {[%emt 0:01:04]} Nf8 {[%emt 0:00:08]} 14. f4 {[%emt 0:00:09]} g6 {[%emt 0:00:43]} 15. f5 {[%emt 0:00:11]} g5 {[%emt 0:00:06]} 16. c4 {[%emt 0:00:05]} Qd6 {[%emt 0:16:52]} 17. c5 {[%emt 0:00:07]} Qh2+ {[%emt 0:01:22]} 18. Kf2 {[%emt 0:00:02]} Rxe2+ {[%emt 0:01:59]} 19. Kxe2 {[%emt 0:00:12]} Bg3 {[%emt 0:00:45]} 20. Kd1 {[%emt 0:13:17]} Bxe1 {[%emt 0:09:52]} 21. Bxe1 {[%emt 0:00:06]} Bd7 {[%emt 0:01:43]} 22. Bc3 {[%emt 0:10:14]} Be8 {[%emt 0:04:48]} 23. Qe2 {[%emt 0:05:36]} Qc7 {[%emt 0:08:51]} 24. Rf3 {[%emt 0:07:49]} b6 {[%emt 0:49:43]} 25. b4 {[%emt 0:05:40]} Bd7 {[%emt 0:00:00]} 26. Qe7 {[%emt 0:08:22]} Nh7 {[%emt 0:00:00]} 27. Bc4 {[%emt 0:01:53]} Rf8 {[%emt 0:00:00]} 28. Be6 {[%emt 0:08:46]} fxe6 {[%emt 0:00:00]} 29. fxe6 {[%emt 0:00:04]} Qd8 {[%emt 0:00:00]} 30. Qxd7 {[%emt 0:00:39]} Qxd7 {[%emt 0:00:00]} 31. exd7 {[%emt 0:00:02]} Rd8 {[%emt 0:00:00]} 32. b5 {[%emt 0:00:56]} Rxd7 {[%emt 0:00:00]} 33. bxc6 {[%emt 0:00:07]} Rd8 {[%emt 0:00:00]} 34. cxb6 {[%emt 0:06:49]} axb6 {[%emt 0:00:00]} 35. Rd3 {[%emt 0:00:17]} Nf8 {[%emt 0:00:00]} 36. d5 {[%emt 0:00:19]} Kf7 {[%emt 0:00:00]} 37. Kc2 {[%emt 0:01:21]} Rc8 {[%emt 0:00:00]} 38. Kb3 {[%emt 0:00:51]} Ng6 {[%emt 0:00:00]} 39. d6 {[%emt 0:01:35]} 1-0

[Event "4NCL Div 1 2024-25"]
[Site "England"]
[Date "2024.11.23"]
[Round "1.15"]
[White "Galyas, Miklos"]
[Black "Patel, Zain"]
[Result "1/2-1/2"]
[ECO "A30"]
[WhiteElo "2374"]
[BlackElo "2083"]
[Annotator "RC"]
[PlyCount "99"]
[EventDate "2024.11.23"]
[EventType "team-tourn"]
[EventCountry "ENG"]
[SourceTitle "playchess.com"]
[Source "ChessBase"]
[SourceQuality "1"]
[TimeControl "40/6000+30:3000+30"]

1. Nf3 {[%emt 0:10:04]} Nf6 {[%emt 0:13:26]} 2. g3 {[%emt 0:00:08]} b6 {[%emt 0:02:11]} 3. Bg2 {[%emt 0:00:08]} Bb7 {[%emt 0:00:23]} 4. O-O {[%emt 0:00:13]} c5 {[%emt 0:04:46]} 5. c4 {[%emt 0:00:29]} e6 {[%emt 0:03:47]} 6. Nc3 {[%emt 0:01:01]} Be7 {[%emt 0:03:16]} 7. d4 {[%emt 0:04:06]} cxd4 {[%emt 0:02:28]} 8. Qxd4 {[%emt 0:00:08]} O-O {[%emt 0:03:32]} 9. Rd1 {[%emt 0:01:24]} Nc6 {[%emt 0:06:23]} 10. Qf4 {[%emt 0:02:57]} Rc8 {[%emt 0:02:13]} 11. b3 {[%emt 0:01:57]} Ba8 {[%emt 0:06:35]} 12. Bb2 {[%emt 0:03:08]} a6 {[%emt 0:02:54]} 13. e4 {[%emt 0:10:02]} d6 {[%emt 0:07:13]} 14. Rac1 {[%emt 0:09:46]} h6 {[%emt 0:07:35]} 15. h3 {[%emt 0:08:41]} Nh7 {[%emt 0:08:47]} 16. h4 {[%emt 0:14:11]} f5 {[%emt 0:05:07]} 17. exf5 {[%emt 0:03:13]} Rxf5 {[%emt 0:01:13]} 18. Qe3 {[%emt 0:00:39]} Nf8 {[%emt 0:05:54]} 19. Ne4 {[%emt 0:00:52]} Qc7 {[%emt 0:04:48]} 20. Nd4 {[%emt 0:01:24]} Rf7 {[%emt 0:03:57]} 21. Re1 {[%emt 0:10:15]} Ne5 {[%emt 0:04:22]} 22. Qe2 {[%emt 0:00:40]} Ned7 {[%emt 0:01:32]} 23. Rcd1 {[%emt 0:04:52]} Nf6 {[%emt 0:02:49]} 24. Nc3 {[%emt 0:06:43]} Bxg2 {[%emt 0:01:26]} 25. Kxg2 {[%emt 0:00:02]} Qb7+ {[%emt 0:01:52]} 26. Kg1 {[%emt 0:00:12]} Rc5 {[%emt 0:00:30]} 27. Na4 {[%emt 0:02:50]} Re5 {[%emt 0:00:24]} 28. Qf3 {[%emt 0:00:43]} Ne4 {[%emt 0:00:41]} 29. Qh1 {[%emt 0:00:35]} Bf6 {[%emt 0:02:17]} 30. Re2 {[%emt 0:04:18]} Nc5 {[%emt 0:01:27]} 31. Qxb7 {[%emt 0:00:33]} Rxb7 {[%emt 0:00:07]} 32. Nc3 {[%emt 0:01:03]} Rxe2 {[%emt 0:00:11]} 33. Ndxe2 {[%emt 0:00:22]} Rd7 {[%emt 0:00:32]} 34. Bc1 {[%emt 0:00:49]} Ng6 {[%emt 0:00:25]} 35. Kg2 {[%emt 0:05:30]} Kf7 {[%emt 0:01:02]} 36. Be3 {[%emt 0:00:34]} Ne5 {[%emt 0:00:48]} 37. f4 {[%emt 0:01:43]} Ng4 {[%emt 0:00:49]} 38. Bg1 {[%emt 0:00:06]} Bd8 {[%emt 0:00:17]} 39. b4 {[%emt 0:02:11]} Nb7 {[%emt 0:00:03]} 40. c5 {[%emt 0:00:53]} bxc5 {[%emt 0:00:45]} 41. bxc5 {[%emt 0:50:01]} Rc7 {[%emt 0:24:31]} 42. cxd6 {[%emt 0:00:00]} Rd7 {[%emt 0:00:29]} 43. Ne4 {[%emt 0:00:00]} Nf6 {[%emt 0:01:25]} 44. N2c3 {[%emt 0:00:00]} Ba5 {[%emt 0:03:30]} 45. Nxf6 {[%emt 0:00:00]} gxf6 {[%emt 0:24:18]} 46. Ne4 {[%emt 0:00:00]} Bb4 {[%emt 0:00:00]} 47. Rc1 {[%emt 0:00:00]} Nxd6 {[%emt 0:00:00]} 48. Rd1 {[%emt 0:00:00]} a5 {[%emt 0:00:00]} 49. a4 {[%emt 0:00:00]} Ke7 {[%emt 0:00:00]} 50. Nxd6 {[%emt 0:00:58]} 1/2-1/2